[Event "Masters Tournament (MTO)"]
[Site "Biel, Switzerland"]
[Date "2026.07.13"]
[Round "1.43"]
[White "Angst, Oliver"]
[Black "Corbat, Philippe"]
[Result "1-0"]
[TimeControl "100+30+30sec/move"]
[WhiteTitle "-"]
[BlackTitle "-"]
[WhiteFideId "1334069"]
[BlackFideId "1304496"]
[WhiteElo "2121"]
[BlackElo "1893"]

1. e4 {[%clk 01:40:44]} {[%emt 00:00:15]} d5 {[%clk 01:40:48]} {[%emt
00:00:12]} 2. exd5 {[%clk 01:40:55]} {[%emt 00:00:19]} Nf6 {[%clk 01:41:12]}
{[%emt 00:00:07]} 3. Nf3 {[%clk 01:40:33]} {[%emt 00:00:52]} Qxd5 {[%clk
01:40:49]} {[%emt 00:00:53]} 4. Nc3 {[%clk 01:23:40]} {[%emt 00:17:23]} Qd6
{[%clk 01:40:46]} {[%emt 00:00:32]} 5. Nb5 {[%clk 01:19:59]} {[%emt 00:04:12]}
Qb6 {[%clk 01:32:35]} {[%emt 00:08:41]} 6. Bc4 {[%clk 01:14:20]} {[%emt
00:06:09]} Be6 {[%clk 01:20:46]} {[%emt 00:12:20]} 7. Qe2 {[%clk 01:07:33]}
{[%emt 00:07:17]} Bxc4 {[%clk 01:19:28]} {[%emt 00:01:47]} 8. Qxc4 {[%clk
01:07:55]} {[%emt 00:00:08]} c6 {[%clk 01:10:26]} {[%emt 00:09:32]} 9. Nbd4
{[%clk 01:02:14]} {[%emt 00:06:09]} Nbd7 {[%clk 00:59:35]} {[%emt 00:11:22]} 10.
O-O {[%clk 00:58:32]} {[%emt 00:04:13]} Qc5 {[%clk 00:50:59]} {[%emt 00:09:06]}
11. Qb3 {[%clk 00:51:04]} {[%emt 00:07:57]} Qb6 {[%clk 00:46:03]} {[%emt
00:05:27]} 12. Qc4 {[%clk 00:44:18]} {[%emt 00:07:15]} Qc5 {[%clk 00:45:35]}
{[%emt 00:00:58]} 13. Qe2 {[%clk 00:43:43]} {[%emt 00:01:05]} e6 {[%clk
00:43:35]} {[%emt 00:02:31]} 14. b4 {[%clk 00:37:29]} {[%emt 00:06:44]} Qh5
{[%clk 00:36:34]} {[%emt 00:07:30]} 15. Re1 {[%clk 00:30:18]} {[%emt 00:07:41]}
Be7 {[%clk 00:29:56]} {[%emt 00:07:08]} 16. b5 {[%clk 00:25:04]} {[%emt
00:05:45]} c5 {[%clk 00:28:40]} {[%emt 00:01:46]} 17. Nxe6 {[%clk 00:22:27]}
{[%emt 00:03:07]} fxe6 {[%clk 00:29:04]} {[%emt 00:00:05]} 18. Qxe6 {[%clk
00:22:49]} {[%emt 00:00:08]} Qf7 {[%clk 00:29:08]} {[%emt 00:00:27]} 19. Qe2
{[%clk 00:17:50]} {[%emt 00:05:28]} h6 {[%clk 00:26:11]} {[%emt 00:03:26]} 20.
Ba3 {[%clk 00:08:17]} {[%emt 00:10:04]} Kf8 {[%clk 00:25:13]} {[%emt 00:01:28]}
21. d4 {[%clk 00:02:56]} {[%emt 00:05:51]} Re8 {[%clk 00:24:36]} {[%emt
00:01:07]} 22. dxc5 {[%clk 00:02:09]} {[%emt 00:01:17]} Bxc5 {[%clk 00:16:19]}
{[%emt 00:08:47]} 23. Bxc5+ {[%clk 00:02:21]} {[%emt 00:00:18]} Nxc5 {[%clk
00:16:40]} {[%emt 00:00:10]} 24. Ne5 {[%clk 00:02:06]} {[%emt 00:00:44]} Qd5
{[%clk 00:06:32]} {[%emt 00:10:38]} 25. Ng6+ {[%clk 00:02:12]} {[%emt
00:00:24]} Kg8 {[%clk 00:06:53]} {[%emt 00:00:09]} 26. Qxe8+ {[%clk 00:01:56]}
{[%emt 00:00:47]} Nxe8 {[%clk 00:07:10]} {[%emt 00:00:13]} 27. Ne7+ {[%clk
00:02:21]} {[%emt 00:00:05]} 1-0

[Event "Masters Tournament (MTO)"]
[Site "Biel, Switzerland"]
[Date "2026.07.13"]
[Round "1.44"]
[White "Wenger, Arejou"]
[Black "Malli, Suvirr"]
[Result "0-1"]
[TimeControl "100+30+30sec/move"]
[WhiteTitle "-"]
[BlackTitle "-"]
[WhiteFideId "1336584"]
[BlackFideId "1341855"]
[WhiteElo "1873"]
[BlackElo "2120"]

1. e4 {[%clk 01:40:58]} {[%emt 00:00:01]} c5 {[%clk 01:40:48]} {[%emt
00:00:12]} 2. Nf3 {[%clk 01:41:22]} {[%emt 00:00:06]} e6 {[%clk 01:41:04]}
{[%emt 00:00:15]} 3. c3 {[%clk 01:41:41]} {[%emt 00:00:12]} d5 {[%clk
01:40:58]} {[%emt 00:00:36]} 4. exd5 {[%clk 01:41:45]} {[%emt 00:00:26]} exd5
{[%clk 01:41:16]} {[%emt 00:00:11]} 5. d4 {[%clk 01:41:34]} {[%emt 00:00:41]}
Nc6 {[%clk 01:40:55]} {[%emt 00:00:51]} 6. Bb5 {[%clk 01:41:23]} {[%emt
00:00:41]} Bd6 {[%clk 01:33:20]} {[%emt 00:08:05]} 7. dxc5 {[%clk 01:38:44]}
{[%emt 00:03:10]} Bxc5 {[%clk 01:33:37]} {[%emt 00:00:13]} 8. O-O {[%clk
01:38:05]} {[%emt 00:01:08]} Nge7 {[%clk 01:30:23]} {[%emt 00:03:43]} 9. Nbd2
{[%clk 01:35:21]} {[%emt 00:03:14]} O-O {[%clk 01:30:17]} {[%emt 00:00:36]} 10.
Nb3 {[%clk 01:35:43]} {[%emt 00:00:08]} Bb6 {[%clk 01:27:36]} {[%emt 00:03:11]}
11. Re1 {[%clk 01:32:50]} {[%emt 00:03:23]} Bg4 {[%clk 01:24:30]} {[%emt
00:03:35]} 12. Be3 {[%clk 01:29:13]} {[%emt 00:04:08]} Bxe3 {[%clk 01:12:57]}
{[%emt 00:12:04]} 13. Rxe3 {[%clk 01:28:20]} {[%emt 00:01:22]} a6 {[%clk
01:08:43]} {[%emt 00:04:45]} 14. Be2 {[%clk 01:12:46]} {[%emt 00:16:03]} Qd6
{[%clk 00:55:35]} {[%emt 00:13:38]} 15. Nfd4 {[%clk 01:09:53]} {[%emt
00:03:23]} Bd7 {[%clk 00:53:36]} {[%emt 00:02:30]} 16. Bf3 {[%clk 01:02:50]}
{[%emt 00:07:32]} Ne5 {[%clk 00:46:05]} {[%emt 00:08:01]} 17. Qe2 {[%clk
00:59:55]} {[%emt 00:03:25]} N7g6 {[%clk 00:42:50]} {[%emt 00:03:45]} 18. Nd2
{[%clk 00:53:48]} {[%emt 00:06:37]} Rae8 {[%clk 00:34:22]} {[%emt 00:08:58]} 19.
Re1 {[%clk 00:50:13]} {[%emt 00:04:06]} f5 {[%clk 00:24:25]} {[%emt 00:10:27]}
20. Qf1 {[%clk 00:41:47]} {[%emt 00:08:55]} f4 {[%clk 00:22:34]} {[%emt
00:02:20]} 21. R3e2 {[%clk 00:41:58]} {[%emt 00:00:20]} Nh4 {[%clk 00:19:39]}
{[%emt 00:03:25]} 22. Kh1 {[%clk 00:31:11]} {[%emt 00:11:17]} Nexf3 {[%clk
00:12:13]} {[%emt 00:07:56]} 23. N2xf3 {[%clk 00:29:39]} {[%emt 00:02:02]} Nxf3
{[%clk 00:11:10]} {[%emt 00:01:33]} 24. Rxe8 {[%clk 00:24:38]} {[%emt
00:05:31]} Bxe8 {[%clk 00:10:23]} {[%emt 00:01:18]} 25. gxf3 {[%clk 00:23:06]}
{[%emt 00:02:01]} Bd7 {[%clk 00:08:46]} {[%emt 00:02:06]} 26. Qg2 {[%clk
00:18:08]} {[%emt 00:05:28]} Rf6 {[%clk 00:05:45]} {[%emt 00:03:31]} 27. Qg5
{[%clk 00:17:52]} {[%emt 00:00:46]} h6 {[%clk 00:01:29]} {[%emt 00:04:47]} 28.
Qe5 {[%clk 00:11:19]} {[%emt 00:07:04]} Qxe5 {[%clk 00:00:57]} {[%emt
00:01:02]} 29. Rxe5 {[%clk 00:11:47]} {[%emt 00:00:01]} Rd6 {[%clk 00:00:33]}
{[%emt 00:00:55]} 30. h4 {[%clk 00:06:14]} {[%emt 00:06:02]} g6 {[%clk
00:00:33]} {[%emt 00:00:30]} 31. Ne2 {[%clk 00:04:29]} {[%emt 00:02:15]} Kf7
{[%clk 00:00:43]} {[%emt 00:00:19]} 32. Nxf4 {[%clk 00:04:07]} {[%emt
00:00:53]} d4 {[%clk 00:00:57]} {[%emt 00:00:17]} 33. cxd4 {[%emt 00:00:53]}
Rxd4 {[%clk 00:01:18]} 34. Nd5 {[%clk 00:03:44]} {[%emt 00:00:37]} Bc6 {[%clk
00:01:11]} {[%emt 00:00:36]} 35. Nc3 {[%clk 00:01:37]} {[%emt 00:02:38]} Rxh4+
{[%clk 00:01:07]} {[%emt 00:00:34]} 36. Kg2 {[%clk 00:01:50]} {[%emt 00:00:17]}
Rg4+ {[%clk 00:01:09]} {[%emt 00:00:28]} 37. Kf1 {[%clk 00:01:25]} {[%emt
00:00:55]} Bxf3 {[%clk 00:01:11]} {[%emt 00:00:28]} 38. Ke1 {[%clk 00:01:04]}
{[%emt 00:00:52]} h5 {[%clk 00:01:06]} {[%emt 00:00:34]} 39. Kd2 {[%clk
00:01:18]} {[%emt 00:00:17]} Bc6 {[%clk 00:00:59]} {[%emt 00:00:36]} 40. Ke3
{[%clk 00:01:03]} {[%emt 00:00:45]} Kf6 {[%clk 00:00:33]} {[%emt 00:00:56]} 41.
Rc5 {[%clk 00:22:34]} {[%emt 00:08:58]} h4 {[%clk 00:19:48]} {[%emt 00:11:15]}
42. Nd5+ {[%clk 00:20:13]} {[%emt 00:02:52]} Kf7 {[%clk 00:19:45]} {[%emt
00:00:32]} 43. Nf4 {[%clk 00:20:12]} {[%emt 00:00:29]} g5 {[%clk 00:18:20]}
{[%emt 00:01:56]} 44. Rf5+ {[%clk 00:17:12]} {[%emt 00:03:31]} Kg7 {[%clk
00:17:24]} {[%emt 00:01:24]} 45. Nh3 {[%clk 00:16:32]} {[%emt 00:01:11]} Kg6
{[%clk 00:17:17]} {[%emt 00:00:36]} 46. Rf8 {[%clk 00:16:45]} {[%emt 00:00:18]}
Bg2 {[%clk 00:09:49]} {[%emt 00:07:58]} 47. f3 {[%clk 00:12:25]} {[%emt
00:04:51]} Rb4 {[%clk 00:06:48]} {[%emt 00:03:30]} 48. Nxg5 {[%clk 00:12:22]}
{[%emt 00:00:33]} Rxb2 {[%clk 00:05:59]} {[%emt 00:01:19]} 49. f4 {[%clk
00:11:27]} {[%emt 00:01:25]} h3 {[%clk 00:04:49]} {[%emt 00:01:39]} 50. Rh8
{[%clk 00:11:10]} {[%emt 00:00:48]} Rxa2 {[%clk 00:04:19]} {[%emt 00:01:00]} 51.
Kd4 {[%clk 00:11:18]} {[%emt 00:00:22]} Kf5 {[%clk 00:02:10]} {[%emt 00:02:39]}
52. Nxh3 {[%clk 00:11:14]} {[%emt 00:00:34]} Bxh3 {[%clk 00:02:32]} {[%emt
00:00:07]} 53. Rxh3 {[%clk 00:11:41]} {[%emt 00:00:04]} Rb2 {[%clk 00:01:44]}
{[%emt 00:01:17]} 54. Rf3 {[%clk 00:07:13]} {[%emt 00:04:58]} a5 {[%clk
00:01:33]} {[%emt 00:00:42]} 55. Kc3 {[%clk 00:07:20]} {[%emt 00:00:21]} Rb4
{[%clk 00:01:42]} {[%emt 00:00:22]} 56. Rf1 {[%clk 00:05:05]} {[%emt 00:02:45]}
b6 {[%clk 00:01:16]} {[%emt 00:00:57]} 57. Rf2 {[%emt 00:01:41]} Rb1 {[%clk
00:01:03]} 58. Kc2 {[%clk 00:04:18]} {[%emt 00:00:49]} Rb5 {[%clk 00:01:16]}
{[%emt 00:00:17]} 59. Kc3 {[%clk 00:04:15]} {[%emt 00:00:34]} a4 {[%clk
00:01:15]} {[%emt 00:00:30]} 60. Rh2 {[%clk 00:01:07]} {[%emt 00:03:38]} Rb3+
{[%clk 00:00:59]} {[%emt 00:00:46]} 61. Kc2 {[%clk 00:01:33]} {[%emt 00:00:04]}
b5 {[%clk 00:00:50]} {[%emt 00:00:40]} 62. Rf2 {[%clk 00:01:36]} {[%emt
00:00:27]} b4 {[%clk 00:00:52]} {[%emt 00:00:28]} 63. Rf1 {[%clk 00:00:55]}
{[%emt 00:01:11]} Rc3+ {[%clk 00:01:13]} {[%emt 00:00:08]} 64. Kb2 {[%clk
00:00:55]} {[%emt 00:00:29]} a3+ {[%clk 00:01:10]} {[%emt 00:00:33]} 65. Ka2
{[%clk 00:00:55]} {[%emt 00:00:30]} Rc2+ {[%clk 00:01:03]} {[%emt 00:00:37]} 66.
Kb1 {[%clk 00:00:34]} {[%emt 00:00:52]} b3 {[%clk 00:00:39]} {[%emt 00:00:54]}
67. Rh1 {[%clk 00:00:31]} {[%emt 00:00:33]} Kxf4 {[%clk 00:00:54]} {[%emt
00:00:14]} 68. Rh3 {[%clk 00:00:38]} {[%emt 00:00:24]} a2+ {[%clk 00:01:18]}
{[%emt 00:00:06]} 69. Ka1 {[%clk 00:01:04]} {[%emt 00:00:04]} Rc1+ {[%emt
00:01:03]} 0-1

[Event "Masters Tournament (MTO)"]
[Site "Biel, Switzerland"]
[Date "2026.07.13"]
[Round "1.45"]
[White "Kunz, Andre"]
[Black "Fattori Dittmar, Luca"]
[Result "0-1"]
[TimeControl "100+30+30sec/move"]
[WhiteTitle "-"]
[BlackTitle "-"]
[WhiteFideId "24623652"]
[BlackFideId "34678883"]
[WhiteElo "2116"]
[BlackElo "1840"]

1. e4 {[%clk 01:40:56]} {[%emt 00:00:03]} c6 {[%clk 01:40:46]} {[%emt
00:00:14]} 2. d4 {[%clk 01:41:22]} {[%emt 00:00:04]} d5 {[%clk 01:41:14]}
{[%emt 00:00:03]} 3. Nd2 {[%clk 01:41:47]} {[%emt 00:00:04]} dxe4 {[%clk
01:41:38]} {[%emt 00:00:06]} 4. Nxe4 {[%clk 01:42:11]} {[%emt 00:00:06]} Nd7
{[%clk 01:41:51]} {[%emt 00:00:17]} 5. Bd3 {[%clk 01:41:57]} {[%emt 00:00:44]}
Ndf6 {[%clk 01:40:30]} {[%emt 00:01:51]} 6. Nf3 {[%clk 01:30:29]} {[%emt
00:11:58]} Nxe4 {[%clk 01:40:54]} {[%emt 00:00:06]} 7. Bxe4 {[%clk 01:30:57]}
{[%emt 00:00:02]} Nf6 {[%clk 01:41:14]} {[%emt 00:00:10]} 8. Bd3 {[%clk
01:31:26]} {[%emt 00:00:01]} Bg4 {[%clk 01:41:37]} {[%emt 00:00:07]} 9. c3
{[%clk 01:31:45]} {[%emt 00:00:11]} e6 {[%clk 01:41:59]} {[%emt 00:00:08]} 10.
h3 {[%clk 01:30:36]} {[%emt 00:01:40]} Bh5 {[%clk 01:42:23]} {[%emt 00:00:05]}
11. O-O {[%clk 01:12:09]} {[%emt 00:18:57]} Be7 {[%clk 01:41:44]} {[%emt
00:01:09]} 12. Re1 {[%clk 01:04:39]} {[%emt 00:08:00]} O-O {[%clk 01:41:46]}
{[%emt 00:00:27]} 13. Bf4 {[%clk 00:39:35]} {[%emt 00:25:35]} Rc8 {[%clk
01:37:04]} {[%emt 00:05:12]} 14. Qe2 {[%clk 00:33:24]} {[%emt 00:06:42]} Qd5
{[%clk 01:35:02]} {[%emt 00:02:32]} 15. g4 {[%clk 00:30:31]} {[%emt 00:03:21]}
Bg6 {[%clk 01:35:22]} {[%emt 00:00:11]} 16. Bxg6 {[%clk 00:30:12]} {[%emt
00:00:50]} hxg6 {[%clk 01:35:46]} {[%emt 00:00:05]} 17. c4 {[%clk 00:29:26]}
{[%emt 00:01:16]} Qd8 {[%clk 01:34:55]} {[%emt 00:01:20]} 18. a3 {[%clk
00:27:53]} {[%emt 00:02:04]} Bd6 {[%clk 01:33:10]} {[%emt 00:02:15]} 19. Bg5
{[%clk 00:25:45]} {[%emt 00:02:38]} Qc7 {[%clk 01:32:49]} {[%emt 00:00:52]} 20.
Rad1 {[%clk 00:14:22]} {[%emt 00:11:52]} c5 {[%clk 01:27:40]} {[%emt 00:05:38]}
21. d5 {[%clk 00:13:52]} {[%emt 00:01:01]} exd5 {[%clk 01:27:44]} {[%emt
00:00:26]} 22. Bxf6 {[%clk 00:13:26]} {[%emt 00:00:56]} gxf6 {[%clk 01:28:09]}
{[%emt 00:00:05]} 23. Rxd5 {[%clk 00:13:16]} {[%emt 00:00:41]} Rcd8 {[%clk
01:27:31]} {[%emt 00:01:07]} 24. Red1 {[%clk 00:12:35]} {[%emt 00:01:11]} Rfe8
{[%clk 01:26:39]} {[%emt 00:01:22]} 25. Qd3 {[%clk 00:11:31]} {[%emt 00:01:35]}
Be7 {[%clk 01:21:48]} {[%emt 00:05:20]} 26. Nd2 {[%clk 00:10:07]} {[%emt
00:01:53]} Kg7 {[%clk 01:18:55]} {[%emt 00:03:24]} 27. Ne4 {[%clk 00:09:42]}
{[%emt 00:00:55]} b6 {[%clk 01:18:58]} {[%emt 00:00:27]} 28. Nc3 {[%clk
00:08:49]} {[%emt 00:01:23]} a6 {[%clk 01:18:53]} {[%emt 00:00:36]} 29. Qf3
{[%clk 00:06:07]} {[%emt 00:03:11]} Bd6 {[%clk 01:16:37]} {[%emt 00:02:46]} 30.
Qd3 {[%clk 00:06:36]} Be7 {[%clk 01:16:15]} {[%emt 00:00:52]} 31. Rxd8 {[%clk
00:06:08]} {[%emt 00:00:58]} Rxd8 {[%clk 01:16:36]} {[%emt 00:00:09]} 32. Nd5
{[%clk 00:06:10]} {[%emt 00:00:29]} Qe5 {[%clk 01:16:08]} {[%emt 00:00:57]} 33.
f4 {[%clk 00:01:41]} {[%emt 00:04:59]} Qxb2 {[%clk 01:15:56]} {[%emt 00:00:42]}
34. Rb1 {[%clk 00:02:07]} {[%emt 00:00:03]} Qa2 {[%clk 01:15:00]} {[%emt
00:01:14]} 35. Rxb6 {[%clk 00:02:17]} {[%emt 00:00:33]} Qa1+ {[%clk 01:12:06]}
{[%emt 00:03:22]} 36. Kg2 {[%clk 00:01:47]} {[%emt 00:01:01]} Bd6 {[%clk
01:10:09]} {[%emt 00:02:27]} 37. Rb1 {[%clk 00:01:16]} {[%emt 00:01:01]} Qa2+
{[%clk 01:10:24]} {[%emt 00:00:14]} 38. Kg3 {[%clk 00:00:39]} {[%emt 00:01:09]}
g5 {[%clk 01:07:08]} {[%emt 00:03:46]} 39. Qb3 {[%clk 00:00:38]} {[%emt
00:00:30]} Bxf4+ {[%clk 01:06:47]} {[%emt 00:00:51]} 40. Nxf4 {[%clk 00:00:34]}
{[%emt 00:00:34]} gxf4+ {[%clk 01:07:10]} {[%emt 00:00:07]} 41. Kf3 {[%clk
00:19:56]} {[%emt 00:11:08]} Qd2 {[%clk 01:36:57]} {[%emt 00:00:38]} 0-1